[Event "XLIV Sevilla Open 2019"]
[Site "Sevilla"]
[Date "2019.01.17"]
[Round "7"]
[White "Bub, Volker"]
[Black "Estremera Panos, Sergio"]
[Result "0-1"]
[ECO "B20"]
[WhiteElo "2108"]
[BlackElo "2310"]
[Annotator "NA"]
[PlyCount "82"]
[EventDate "2019.01.11"]
[EventType "swiss"]
[EventCountry "ESP"]
[SourceTitle "playchess.com"]
[Source "ChessBase"]
[SourceQuality "1"]
[TimeControl "5400+30"]

1. e4 {[%emt 0:06:46]} c5 {[%emt 0:00:30]} 2. d3 {[%emt 0:00:05]} Nc6 {[%emt 0:00:50]} 3. g3 {[%emt 0:00:14]} g6 {[%emt 0:01:52]} 4. Bg2 {[%emt 0:00:05]} Bg7 {[%emt 0:00:06]} 5. f4 {[%emt 0:00:11]} d6 {[%emt 0:00:58]} 6. Nf3 {[%emt 0:00:07]} Nf6 {[%emt 0:00:40]} 7. O-O {[%emt 0:00:09]} O-O {[%emt 0:00:07]} 8. Nc3 {[%emt 0:00:07]} Rb8 {[%emt 0:06:12]} 9. h3 {[%emt 0:00:11]} b5 {[%emt 0:00:08]} 10. a3 {[%emt 0:02:28]} a5 {[%emt 0:00:34]} 11. Be3 {[%emt 0:00:55]} Nd7 {[%emt 0:09:26]} 12. Rb1 {[%emt 0:11:36]} b4 {[%emt 0:03:25]} 13. axb4 {[%emt 0:00:08]} axb4 {[%emt 0:05:43]} 14. Ne2 {[%emt 0:00:16]} Ba6 {[%emt 0:01:54]} 15. b3 {[%emt 0:01:01]} Bb7 {[%emt 0:01:03]} 16. g4 {[%emt 0:00:19]} Ra8 {[%emt 0:01:07]} 17. Qd2 {[%emt 0:04:30]} Ra2 {[%emt 0:03:14]} 18. f5 {[%emt 0:02:31]} Qb6 {[%emt 0:01:07]} 19. Kh1 {[%emt 0:09:28]} Nd4 {[%emt 0:00:38]} 20. Nexd4 {[%emt 0:02:23]} cxd4 {[%emt 0:00:09]} 21. Bh6 {[%emt 0:00:46]} Rc8 {[%emt 0:02:08]} 22. Rbc1 {[%emt 0:02:32]} Bh8 {[%emt 0:14:49]} 23. Qf2 {[%emt 0:01:37]} d5 {[%emt 0:12:16]} 24. Nh4 {[%emt 0:04:40]} Ne5 {[%emt 0:02:07]} 25. fxg6 {[%emt 0:00:31]} hxg6 {[%emt 0:00:33]} 26. exd5 {[%emt 0:00:58]} Qd6 {[%emt 0:01:49]} 27. Bf4 {[%emt 0:25:13]} Bxd5 {[%emt 0:00:16]} 28. Bxe5 {[%emt 0:02:18]} Bxe5 {[%emt 0:00:42]} 29. Bxd5 {[%emt 0:01:04]} Qxd5+ {[%emt 0:00:09]} 30. Qf3 {[%emt 0:00:03]} Qxf3+ {[%emt 0:01:14]} 31. Nxf3 {[%emt 0:00:06]} Bf4 {[%emt 0:00:41]} 32. Ra1 {[%emt 0:01:57]} Rxa1 {[%emt 0:02:38]} 33. Rxa1 {[%emt 0:00:03]} Rxc2 {[%emt 0:00:06]} 34. Nxd4 {[%emt 0:02:50]} Rh2+ {[%emt 0:00:22]} 35. Kg1 {[%emt 0:00:04]} Rxh3 {[%emt 0:00:31]} 36. Ne2 {[%emt 0:00:44]} Bd6 {[%emt 0:00:44]} 37. Rd1 {[%emt 0:03:23]} Rh4 {[%emt 0:00:15]} 38. Kg2 {[%emt 0:00:11]} Rxg4+ {[%emt 0:00:22]} 39. Kf3 {[%emt 0:00:01]} Rh4 {[%emt 0:02:40]} 40. Rc1 {[%emt 0:00:19]} f5 {[%emt 0:00:56]} 41. Rc4 {[%emt 0:00:12]} Rh3+ {[%emt 0:00:16]} 0-1